bitfinex/quotes_ETHUSD_20260109
["timestamp","ask_amount","ask_price","bid_price","bid_amount"]
[1767975953169,0.01274514,3129.0,3127.6,1.28048114]
[1767975953375,0.01274514,3129.0,3128.1,7.42410964]
[1767975953586,0.01274514,3129.0,3126.0,0.00080088]
[1767975953587,1.07174573,3128.2,3126.0,0.00080088]
[1767975953741,1.07174573,3127.6,3126.5,2.67238734]
[1767975954073,3.19682874,3128.1,3127.7,1.07174573]
[1767975954243,6.39365748,3128.1,3126.9,0.01274514]
[1767975954444,0.63936575,3128.0,3126.9,0.25]
[1767975954864,0.63936575,3128.0,3127.0,0.01274514]
[1767975955264,0.63936575,3128.0,3126.9,0.25]
[1767975955463,1.07174573,3127.9,3126.1,0.01274514]
[1767975955662,1.07174573,3127.7,3126.4,0.25]
[1767975955863,1.4632688,3127.6,3126.1,0.01274514]
[1767975956076,1.4632688,3127.6,3126.3,0.26274514]
[1767975956561,1.4632688,3127.6,3126.1,3.21159141]
[1767975956875,1.46126881,3127.6,3126.3,0.01274514]
[1767975957669,6.39488408,3127.5,3126.3,0.01274514]
[1767975957979,1.07174573,3127.3,3126.1,3.21161721]
[1767975958273,1.07174573,3127.3,3126.1,0.01274514]
[1767975958474,1.07174573,3127.3,3126.0,0.00080088]
[1767975958879,1.07174573,3127.3,3126.1,3.19887189]
[1767975959181,1.46126881,3127.3,3126.2,0.31996728]
[1767975959677,6.39570208,3127.1,3126.0,0.00080088]
[1767975960347,6.39570208,3127.1,3126.6,0.001]
[1767975960947,6.39570208,3127.1,3126.0,0.00080088]
[1767975961407,7.46744781,3127.1,3126.0,0.00080088]
[1767975961898,6.39488408,3127.5,3126.2,1.03048114]
[1767975962054,1.07174573,3127.4,3126.0,0.00080088]
[1767975962252,1.07174573,3127.4,3126.1,0.01274514]
[1767975962492,3.19744204,3127.5,3126.3,0.01274514]
[1767975962701,1.07174573,3128.5,3126.7,0.01274514]
[1767975963001,1.31974573,3128.5,3126.8,0.25]
[1767975963155,1.31974573,3128.5,3126.9,0.25]
[1767975963343,1.31974573,3128.5,3126.2,0.25]
[1767975963778,0.99320807,3128.3,3126.3,6.3973387]
[1767975963977,0.99320807,3128.1,3126.3,3.19866935]
[1767975964280,0.99320807,3128.1,3126.4,1.39487219]
[1767975964877,0.99320807,3128.1,3126.4,0.34486694]
[1767975965106,0.99320807,3128.1,3126.2,0.25]
[1767975965376,0.99320807,3128.1,3126.0,1.30080613]
[1767975965552,0.99320807,3128.1,3126.1,3.19883893]
[1767975965752,0.99320807,3128.1,3126.0,4.49976471]
[1767975965955,0.99320807,3127.9,3126.0,1.30080613]
[1767975966285,0.99320807,3127.7,3126.1,3.19887399]
[1767975966496,0.99320807,3127.5,3126.1,3.19887399]
[1767975967090,0.99320807,3127.5,3126.1,4.24887924]
[1767975967382,0.99320807,3127.5,3126.1,1.05000525]
[1767975967549,0.99320807,3127.5,3126.0,0.00080088]
[1767975967952,7.38829663,3127.4,3126.0,0.00080088]
[1767975968153,0.248,3127.3,3126.1,1.3699932]
[1767975970193,6.39549756,3127.2,3126.1,4.56882097]
[1767975970787,6.39549756,3127.2,3126.1,1.3699932]
[1767975971736,0.99320807,3127.1,3126.0,0.00080088]
[1767975972019,0.99320807,3127.1,3125.1,4.24984394]
[1767975972020,0.99400895,3126.4,3125.1,4.24984394]
[1767975972231,4.43987742,3126.3,3125.1,1.05000525]
[1767975972514,4.43987742,3126.3,3124.7,0.0008104]
[1767975972515,10.83721612,3126.3,3124.9,3.20004922]
[1767975972727,10.83721612,3126.3,3124.7,0.0008104]
[1767975972728,0.99320807,3126.2,3124.7,0.0008104]
[1767975973004,13.0426774,3126.3,3125.2,1.05000525]
[1767975973005,0.248,3126.1,3125.2,1.05000525]
[1767975973226,0.00080088,3126.4,3125.1,3.19989491]
[1767975973371,6.3973387,3126.3,3125.1,3.19989491]
[1767975973572,3.19866935,3126.3,3125.1,3.19989491]
[1767975973795,0.00080088,3126.4,3125.2,1.39499474]
[1767975974202,4.19257599,3126.4,3125.4,3.19959045]
[1767975974402,0.00080088,3126.4,3125.5,1.05000525]
[1767975974702,0.00080088,3126.4,3125.7,1.05000525]
[1767975974909,0.00080088,3126.4,3125.8,0.03199181]
[1767975975205,0.99520807,3127.2,3126.0,1.05080621]
[1767975975206,0.002,3127.2,3126.0,1.05080621]
[1767975976288,0.002,3127.2,3126.2,1.05000525]
[1767975977289,0.002,3127.2,3126.3,0.25]
[1767975977611,0.002,3127.2,3126.2,1.05000525]
[1767975977814,0.002,3127.2,3126.3,0.74477532]
[1767975978010,0.002,3127.2,3126.4,0.25]
[1767975978211,0.002,3127.2,3126.4,3.44855731]
[1767975978811,0.002,3127.2,3126.4,6.64712435]
[1767975979021,0.002,3127.2,3126.4,3.44855731]
[1767975979193,0.002,3127.2,3126.5,0.73919947]
[1767975979533,0.002,3127.2,3126.3,0.25]
[1767975979683,0.002,3127.2,3126.3,1.30000525]
[1767975979882,0.002,3127.2,3126.4,7.44708541]
[1767975980182,0.002,3127.2,3126.5,1.05000525]
[1767975980399,0.002,3127.2,3126.6,6.39672486]
[1767975980600,0.002,3127.2,3126.7,0.74467301]
[1767975980799,0.002,3127.2,3126.7,1.79467826]
[1767975981181,0.002,3127.5,3126.8,1.05000525]
[1767975981379,3.19635833,3128.6,3127.0,1.05000525]
[1767975981583,3.19707011,3128.7,3127.0,1.05000525]
[1767975981811,0.34470701,3128.6,3127.0,1.05000525]
[1767975982113,3.19707011,3128.7,3127.0,1.05000525]
[1767975982114,0.000808,3128.7,3127.0,1.05000525]
[1767975982297,0.000808,3128.7,3127.2,1.05000525]
[1767975983019,0.000808,3128.7,3127.2,1.06275039]
[1767975984304,0.000808,3128.7,3127.4,1.05000525]
[1767975984497,0.000808,3128.7,3127.6,1.05000525]
[1767975984702,0.000808,3128.7,3127.8,1.05000525]
[1767975984901,0.000808,3128.7,3127.8,0.25]
[1767975985491,0.002,3128.4,3127.8,0.25]
[1767975985793,0.002,3128.4,3127.9,0.25]
[1767975986501,0.002,3128.4,3128.0,3.19693094]
[1767975986705,0.002808,3128.7,3128.1,1.05000525]
[1767975987227,0.002808,3128.7,3128.0,0.48568549]
[1767975987526,0.99601607,3128.7,3127.5,0.001]
[1767975988027,0.99601607,3128.7,3127.5,0.251]
[1767975988323,0.99601607,3128.7,3127.5,3.44842374]
[1767975988511,3.19631784,3128.6,3127.6,3.19733981]
[1767975989227,0.99320807,3128.5,3127.6,3.19733981]
[1767975989427,0.99320807,3128.5,3127.6,3.54217379]
[1767975990202,0.99320807,3128.5,3127.6,6.7395136]
[1767975990404,0.002808,3128.7,3127.6,6.7395136]
[1767975991124,0.002808,3128.7,3127.6,9.93685341]
[1767975991328,0.002808,3128.7,3127.6,6.7395136]
[1767975991538,0.002808,3128.7,3127.7,0.69905136]
[1767975991838,0.002808,3128.7,3127.8,0.03197135]
[1767975992218,0.002808,3128.7,3127.7,0.69905136]
[1767975992409,0.002808,3128.7,3127.8,3.19713536]
[1767975993025,0.002808,3128.7,3127.9,0.25]
[1767975993230,0.002808,3128.7,3128.0,0.25]
[1767975993738,1.05959237,3128.6,3128.0,0.25]
[1767975994355,1.05959237,3128.6,3127.6,0.25]
[1767975994510,1.05959237,3128.4,3127.6,3.44733163]
[1767975994712,3.1963663,3128.6,3127.6,3.44733163]
[1767975994940,3.1963663,3128.6,3127.6,6.64467144]
[1767975995142,3.1963663,3128.6,3127.6,4.11189877]
[1767975995933,1.48180667,3128.7,3127.6,7.30923858]
[1767975996140,4.25870253,3128.7,3127.6,7.30923858]
[1767975996646,1.06240037,3128.7,3127.6,7.30923858]
[1767975996831,4.25862985,3128.7,3127.6,7.30923858]
[1767975997031,1.06240037,3128.7,3127.6,7.30923858]
[1767975997237,3.19904714,3128.7,3127.6,7.30923858]
[1767975997416,3.19904714,3128.7,3127.7,0.73102386]
[1767975997813,0.002808,3128.7,3127.7,0.73102386]
[1767975998019,0.002808,3128.7,3127.8,1.02516078]
[1767975998618,0.002,3128.4,3127.9,3.19703315]
[1767975999450,0.002,3128.4,3128.0,0.25]
[1767975999744,0.002,3128.4,3127.5,0.001]
[1767975999943,0.002,3128.4,3127.7,0.25]
[1767976000530,0.002,3128.4,3127.7,3.44722951]
[1767976001347,0.002,3128.4,3127.7,0.25]
[1767976002458,1.06159237,3128.4,3127.5,0.001]
[1767976002776,1.05959237,3128.2,3127.5,0.001]
[1767976003462,0.002,3128.4,3127.5,0.001]
[1767976003463,1.05959237,3128.0,3127.5,0.001]
[1767976003929,1.05959237,3128.3,3127.5,0.001]
[1767976004442,4.25625988,3128.3,3127.5,0.001]
[1767976004623,0.002,3128.4,3127.5,1.02616078]
[1767976005260,3.1985281,3128.4,3127.5,1.02616078]
[1767976005466,3.1985281,3128.4,3127.6,0.25]
[1767976005649,0.002,3128.4,3127.6,3.44727346]
[1767976006240,0.002,3128.4,3127.5,0.001]
[1767976006435,0.002,3128.4,3127.6,3.4473349]
[1767976007934,0.002,3128.4,3127.6,4.11191168]
[1767976008162,0.002,3128.4,3127.7,0.25]
[1767976009480,0.002,3128.4,3127.6,3.86191552]
[1767976009481,0.002,3128.4,3127.8,0.25]
[1767976009934,3.1990531,3128.7,3127.8,0.25]
[1767976009935,0.002808,3128.7,3127.9,1.02845269]
[1767976010134,0.002,3128.8,3127.9,1.02845269]
[1767976010135,0.00080272,3129.3,3128.3,1.02926149]
[1767976010345,1.02726976,3129.2,3128.3,0.0008088]
[1767976010547,0.002,3128.4,3128.3,0.0008088]
[1767976011747,0.002,3128.4,3128.0,0.001]
[1767976012463,1.66873333,3128.4,3127.5,3.44842983]
[1767976012775,0.002,3128.4,3127.6,3.19731002]
[1767976013195,0.002,3128.4,3127.7,3.19722064]
[1767976013978,0.002,3128.4,3127.7,7.36298579]
[1767976015185,0.002,3128.4,3127.5,0.001]
[1767976015387,1.02722275,3128.4,3127.8,0.25]
[1767976015584,1.02722275,3128.4,3127.5,0.001]
[1767976015884,1.02522275,3128.2,3127.5,0.001]
[1767976016044,1.02522275,3128.1,3127.5,0.001]
[1767976018178,4.22208284,3128.1,3127.5,0.001]
[1767976018381,1.02522275,3127.5,3126.2,3.19869891]
[1767976018553,1.03796789,3127.4,3126.3,3.19860499]
[1767976018875,1.03796789,3127.4,3126.4,3.19853022]
[1767976019076,1.03796789,3127.4,3126.1,1.21852757]
[1767976019077,1.03796789,3127.4,3126.5,0.31985302]
[1767976019275,1.03796789,3127.4,3126.2,3.19872573]
[1767976019454,1.03696789,3127.4,3126.2,3.19872573]
[1767976019851,1.03696789,3127.4,3126.1,0.96852757]
[1767976020051,7.43387449,3127.0,3126.0,0.00080096]
[1767976020277,4.48392119,3127.0,3126.0,0.00080096]
[1767976020488,7.68187449,3127.0,3126.0,0.00080096]
[1767976020642,0.01274514,3126.8,3126.0,0.00080096]
[1767976020849,1.03796789,3126.8,3126.0,0.00080096]
[1767976021150,0.248,3126.7,3126.0,0.00080096]
[1767976021471,0.248,3126.9,3126.0,0.00080096]
[1767976021981,0.248,3126.9,3126.3,0.001]
[1767976022346,3.21011798,3127.6,3126.3,0.001]
[1767976022347,0.01274514,3127.6,3126.3,0.96952757]
[1767976022574,0.01274514,3127.6,3126.5,0.96852757]
[1767976022968,0.99868165,3127.4,3126.3,0.001]
[1767976023287,0.99868165,3127.2,3126.3,0.001]
[1767976023651,0.98593651,3127.2,3126.3,0.001]
[1767976024605,0.01274514,3127.1,3126.3,0.001]
[1767976025094,0.01074515,3127.1,3126.3,0.001]
[1767976025296,0.99668166,3127.1,3126.3,0.001]
[1767976025497,0.01074515,3127.1,3126.3,0.001]
[1767976026273,0.99868165,3126.9,3126.3,0.001]
[1767976026479,3.19836243,3126.6,3126.3,0.001]
[1767976026880,3.19836243,3126.6,3126.0,0.00080096]
[1767976026881,3.86409093,3126.6,3126.0,0.00080096]
[1767976028001,0.01274514,3126.5,3126.0,0.00080096]
[1767976028600,3.19856704,3126.4,3126.0,0.00080096]
[1767976028802,0.26074514,3126.3,3125.2,3.1997167]
[1767976029003,0.26074514,3126.3,3125.3,3.19965372]
[1767976029004,1.24668165,3126.3,3125.3,3.19965372]
[1767976029189,1.60984198,3126.3,3125.2,3.19974434]
[1767976029391,0.01274514,3126.1,3124.9,0.98959565]
[1767976029594,0.99868165,3126.1,3124.9,0.98959565]
[1767976030069,0.01274514,3126.1,3125.3,3.19965746]
[1767976030474,0.01274514,3126.1,3125.2,3.19974888]
[1767976030696,3.21169721,3126.1,3125.2,3.83972191]
[1767976030900,0.01274514,3125.9,3124.9,0.98959565]
[1767976031169,0.01274514,3125.9,3124.7,0.0008104]
[1767976031170,0.01274514,3125.7,3124.7,0.0008104]
[1767976031395,0.01274514,3125.6,3124.7,3.20110218]
[1767976031599,0.99868165,3125.4,3124.7,0.0008104]
[1767976031913,0.99868165,3124.8,3123.0,1.15626129]
[1767976032069,0.01274514,3124.4,3123.1,6.40389356]
[1767976032271,0.01274514,3124.2,3123.2,0.73934892]
[1767976032594,0.98593651,3124.6,3123.2,0.73934892]
[1767976032792,0.26074514,3124.5,3123.3,6.40348348]
[1767976032996,0.01355554,3125.1,3123.4,0.98959565]
[1767976033306,0.01355554,3125.1,3123.6,0.98959565]
[1767976033307,0.01274514,3124.7,3123.6,0.98959565]
[1767976033508,0.01274514,3124.7,3123.5,0.73930791]
[1767976033981,0.248,3124.7,3123.5,1.72890356]
[1767976034302,0.248,3124.7,3123.6,0.98959565]
[1767976034601,0.01274514,3124.6,3123.6,0.98959565]
[1767976034779,0.01274514,3125.0,3123.8,0.98959565]
[1767976035003,0.248,3125.0,3123.8,0.98959565]
[1767976035396,0.0008104,3125.1,3123.8,0.98959565]
[1767976035594,0.0008104,3125.1,3124.0,0.98959565]
[1767976036814,0.0008104,3125.1,3124.2,0.98959565]
[1767976036981,0.0008104,3125.1,3124.3,1.37932831]
[1767976036982,0.99868165,3125.0,3124.3,1.37932831]
[1767976037183,1.24668165,3125.0,3123.4,0.98959565]
[1767976037509,1.24668165,3125.0,3124.0,3.20101165]
[1767976037713,0.01274514,3124.8,3124.0,3.20101165]
[1767976038938,0.01274514,3124.8,3123.5,6.40304059]
[1767976039105,0.01274514,3124.8,3123.6,0.41910995]
[1767976039438,0.249,3124.8,3123.6,0.41910995]
[1767976039929,3.44925162,3124.8,3123.6,0.41910995]
[1767976040126,0.99868165,3124.6,3123.2,3.20178464]
[1767976040441,0.99868165,3124.6,3123.0,1.24059565]
[1767976040605,0.01274514,3124.7,3123.4,7.39285858]
[1767976040810,0.249,3124.6,3123.4,7.39285858]
[1767976041011,4.18601323,3125.0,3123.5,0.98959565]
[1767976041204,0.68170202,3124.9,3123.6,1.05944978]
[1767976041541,0.0008104,3125.1,3123.7,0.98959565]
[1767976042559,0.0008104,3125.1,3123.9,0.98959565]
[1767976043047,0.0008104,3125.1,3124.1,0.98959565]
[1767976043200,0.0008104,3125.1,3124.2,0.251]
[1767976044144,0.0008104,3125.1,3124.2,1.24059565]
[1767976044843,0.0008104,3125.1,3124.3,0.98959565]
[1767976045144,0.0008104,3125.1,3124.4,6.40122902]
[1767976045311,0.0008104,3125.1,3124.5,0.73908247]
[1767976046251,0.0008104,3125.1,3124.5,1.72867812]
[1767976046472,0.0008104,3125.1,3124.6,0.98959565]
[1767976046969,0.0008104,3125.1,3124.5,0.73908247]
[1767976047176,0.0008104,3125.1,3124.1,3.20092186]
[1767976047382,0.0008104,3125.1,3124.2,0.001]
[1767976047687,0.002,3124.8,3124.2,0.001]
[1767976050374,0.0008104,3125.1,3124.2,0.001]
[1767976050375,0.0008104,3125.1,3124.5,0.98959565]
[1767976051182,0.0008104,3125.1,3124.3,0.251]
[1767976051478,0.0008104,3125.1,3124.3,1.08443612]
[1767976051679,0.0008104,3125.1,3124.2,0.001]
[1767976052177,0.98674691,3125.1,3124.2,0.001]
[1767976052478,0.0008104,3125.1,3124.2,0.99059565]
[1767976053481,0.0008104,3125.1,3124.3,0.251]
[1767976053646,0.0008104,3125.1,3124.3,1.30877941]
[1767976053846,0.0008104,3125.1,3124.4,6.40122902]
[1767976054076,0.0008104,3125.1,3124.5,0.77100084]
[1767976055647,0.0008104,3125.1,3124.2,0.001]
[1767976056049,1.03685241,3124.9,3124.2,0.001]
[1767976056257,0.0008104,3125.1,3124.2,0.001]
[1767976057045,0.00080096,3126.4,3124.7,1.05777941]
[1767976057245,0.00080096,3126.4,3124.7,1.05859062]
[1767976058085,0.00080096,3126.4,3124.9,1.05777941]
[1767976058246,0.00080096,3126.4,3125.1,1.05777941]
[1767976059271,0.00080096,3126.4,3125.2,6.39959042]
[1767976059701,0.00080096,3126.4,3125.2,6.65059042]
[1767976060902,1e-08,3126.4,3125.3,1.05777941]
[1767976061103,1e-08,3126.4,3125.4,1.05777941]
[1767976061275,1e-08,3126.4,3125.5,10.65624365]
[1767976061896,1e-08,3126.4,3125.5,7.45675557]
[1767976062112,1e-08,3126.4,3125.6,0.99667556]
[1767976063310,1e-08,3126.4,3125.6,2.05445497]
[1767976063527,1e-08,3126.4,3125.7,9.59785008]
[1767976064182,1e-08,3126.4,3125.8,0.251]
[1767976065997,1e-08,3126.4,3125.9,9.59723598]
[1767976066212,1e-08,3126.4,3126.0,0.9848236]
[1767976066411,1e-08,3126.4,3125.8,3.19915436]
[1767976068032,0.01274514,3126.3,3125.3,3.86471508]
[1767976068235,1.04959755,3126.3,3125.3,3.19965604]
[1767976068957,1.03685241,3126.3,3125.3,6.39934886]
[1767976069163,1.03927436,3126.1,3125.0,0.001]
[1767976069377,1.03927436,3126.1,3125.1,3.19980659]
[1767976069662,1.03927436,3126.1,3125.3,3.19968215]
[1767976070227,1.03927436,3126.1,3125.3,6.39937497]
[1767976070428,1.03927436,3126.1,3125.3,3.19968215]
[1767976070628,1.03927436,3126.1,3125.3,6.39937497]
[1767976070827,1.03927436,3126.1,3125.3,3.19968215]
[1767976071157,1.03927436,3126.1,3125.4,0.35197628]
[1767976071359,1.03927437,3126.4,3125.4,0.35197628]
[1767976072158,1.03927437,3126.4,3125.5,6.39897616]
[1767976072530,0.002,3126.0,3125.5,6.39897616]
[1767976074362,0.002,3126.0,3125.5,3.19948808]
[1767976074541,0.002,3126.0,3125.5,4.12559103]
[1767976075065,0.002,3126.0,3125.5,3.87459103]
[1767976075469,0.002,3126.0,3125.5,7.07407911]
[1767976076361,0.002,3126.3,3125.5,10.27356719]
[1767976077145,0.002,3126.3,3125.6,1.04860881]
[1767976077343,0.002,3126.3,3125.7,1.1322176]
[1767976077682,1e-08,3126.4,3125.7,2.18082641]
[1767976077861,1e-08,3126.4,3125.7,1.1322176]
[1767976078243,0.002,3126.6,3125.8,9.597543]
[1767976078448,0.002,3126.6,3126.0,0.00080104]
[1767976078757,0.002,3126.6,3126.0,0.98573544]
[1767976080268,0.002,3126.6,3125.7,3.19927617]
[1767976080269,1.03927436,3126.5,3125.7,3.19927617]
[1767976080468,1.03927436,3126.3,3125.7,3.19927617]
[1767976081097,1.03927436,3126.3,3125.7,3.19927003]
[1767976081453,1.03927436,3126.3,3125.4,0.35197628]
[1767976081766,0.002,3126.6,3125.7,9.59783765]
[1767976081967,0.002,3126.6,3126.0,0.00080112]
[1767976082289,0.002,3126.6,3126.0,6.39875376]
[1767976084602,0.002,3126.6,3126.0,3.19977744]
[1767976085520,0.002,3126.6,3126.0,6.39875376]
[1767976085992,0.002,3126.6,3126.0,0.00080112]
[1767976086191,0.002,3126.6,3126.1,0.63989584]
[1767976086393,0.002,3127.6,3126.2,1.06493017]
[1767976086614,0.002,3127.6,3126.3,1.31593017]
[1767976088335,0.002,3127.6,3126.4,6.39713408]
[1767976088545,0.31992888,3127.5,3126.5,1.09116877]
[1767976089438,1.38375673,3127.5,3126.5,1.09116877]
[1767976090199,0.002,3127.6,3126.6,6.39672486]
[1767976091397,0.002,3127.6,3126.6,7.46165503]
[1767976091736,0.002,3127.6,3126.7,0.251]
[1767976091902,1.06582785,3127.6,3126.5,3.19841698]
[1767976092439,1.06382785,3127.4,3126.4,3.19856389]
[1767976092824,1.06382785,3127.4,3126.4,6.39713093]
[1767976093021,1.06382785,3127.4,3126.4,3.19856389]
[1767976093398,1.06382785,3127.4,3126.4,6.39713093]
[1767976094015,0.002,3127.6,3126.4,7.4620611]
[1767976094016,3.19937875,3127.6,3126.4,7.4620611]
[1767976094936,0.002,3127.6,3126.5,1.06493017]
[1767976095107,0.002,3127.6,3126.6,1.81113628]
[1767976095727,0.002,3127.6,3126.6,0.74620611]
[1767976096447,0.002,3127.6,3126.7,3.19826014]
[1767976096643,1.06582785,3127.6,3126.7,3.19826014]
[1767976096847,0.002,3127.6,3126.7,7.46145045]
[1767976097412,0.002,3127.6,3126.8,1.06493017]
[1767976098507,0.002,3127.3,3126.9,3.19805558]
[1767976098744,0.002,3127.3,3126.8,1.06493017]
[1767976098745,0.002,3127.3,3126.8,3.86]
[1767976099939,0.002,3127.3,3126.8,7.05815273]
[1767976100516,0.002,3127.3,3126.8,3.86]
[1767976100718,1.06582785,3127.3,3126.8,3.76409368]
[1767976100923,1.06382785,3127.1,3126.1,3.19881512]
[1767976101743,1.06382785,3127.1,3126.2,3.19876563]
[1767976102346,1.06382785,3127.1,3126.1,3.19887059]
[1767976102516,3.1979533,3127.0,3126.0,3.19977004]
[1767976103255,6.3959066,3127.0,3126.0,3.19977004]
[1767976103450,4.26178115,3127.0,3126.0,3.19977004]
[1767976103648,1.06382785,3126.9,3126.0,0.00080112]
[1767976104157,1.07657299,3126.8,3126.0,0.00080112]
[1767976104522,1.06382785,3126.8,3126.0,0.00080112]
[1767976104727,1.06382785,3126.7,3126.0,0.00080112]
[1767976105344,0.249,3126.9,3126.0,0.00080112]
[1767976105560,3.44699761,3127.0,3126.0,0.00080112]
[1767976105855,1.31282785,3127.0,3126.0,0.00080112]
[1767976106843,1.06382785,3126.9,3126.0,0.00080112]
[1767976107045,0.249,3127.0,3126.0,0.00080112]
[1767976107360,1.06382785,3126.9,3126.0,0.00080112]
[1767976107956,1.06382785,3126.7,3126.0,0.00080112]
[1767976109044,4.26209398,3126.7,3126.0,0.00080112]
[1767976109246,1.06382785,3126.6,3126.0,0.00080112]
[1767976109561,1.31282785,3126.5,3126.0,0.00080112]
[1767976109943,1.06382785,3126.1,3125.0,0.001]
[1767976110145,1.31282785,3126.0,3125.0,3.20097288]
[1767976110556,1.31282785,3126.0,3125.0,0.001]
[1767976110935,1.06382785,3125.8,3125.0,0.001]
[1767976111137,1.06382785,3125.7,3125.0,0.001]
[1767976113269,1.01838316,3125.6,3125.0,0.001]
[1767976113449,0.249,3125.5,3125.0,0.001]
[1767976114249,3.19867761,3126.3,3125.0,1.0455921]
[1767976114473,0.67078619,3126.2,3125.0,1.0455921]
[1767976115185,3.86964676,3126.2,3125.1,3.1998976]
[1767976115504,7.06850733,3126.2,3125.1,3.1998976]
[1767976115793,3.86964676,3126.2,3125.1,6.3997952]
[1767976116082,7.06850733,3126.2,3125.1,3.1998976]
[1767976116378,7.06850733,3126.2,3125.2,0.74454605]
[1767976117174,1.01838316,3125.9,3125.0,0.001]
[1767976118980,1.0311283,3125.9,3125.0,0.001]
[1767976119174,6.398362,3125.8,3125.0,0.001]
[1767976119375,0.249,3125.7,3125.0,0.001]
[1767976121278,3.44837615,3125.7,3125.0,0.001]
[1767976121445,4.05547879,3125.7,3125.0,0.001]
[1767976121975,4.05547879,3125.7,3125.3,0.001]
[1767976123380,0.85610264,3125.7,3125.3,0.001]
[1767976123748,1.0311283,3125.6,3124.7,0.00081121]
[1767976124678,4.05540232,3125.7,3124.7,0.00081121]
[1767976124865,0.40554023,3125.6,3124.7,0.00081121]
[1767976125050,1.43666853,3125.6,3124.7,0.00081121]
[1767976125248,0.40554023,3125.6,3124.7,1.04540331]
[1767976125452,0.249,3125.5,3124.7,1.04540331]
[1767976125963,0.249,3125.5,3124.7,0.00081121]
[1767976127179,0.249,3125.4,3124.7,0.00081121]
[1767976127957,0.24700001,3125.4,3124.7,0.00081121]
[1767976129360,0.249,3125.8,3124.7,1.05075787]
[1767976129758,1.25814211,3125.8,3124.7,1.05075787]
[1767976131300,3.19922675,3125.8,3124.8,1.04994666]
[1767976131860,3.44801222,3126.0,3124.8,1.04994666]
[1767976131861,0.249,3126.0,3124.8,1.04994666]
[1767976132074,3.44799561,3126.0,3124.8,1.04994666]
[1767976132292,0.249,3125.9,3124.8,1.04994666]
[1767976132860,9.63942024,3126.4,3124.8,1.04994666]
[1767976133208,9.63942024,3126.4,3124.7,12.80199749]
[1767976133209,0.00080112,3126.4,3125.2,1.04994666]
[1767976133357,0.00080112,3126.4,3125.4,1.04994666]
[1767976133560,0.00080112,3126.4,3125.6,1.04994666]
[1767976134031,0.00080112,3126.4,3125.7,0.251]
[1767976135501,0.00080112,3126.4,3125.8,3.199181]
[1767976135655,0.00080112,3126.4,3125.9,0.3450181]
[1767976136369,0.00080112,3126.4,3125.4,3.19955851]
[1767976136370,1.02188725,3126.2,3125.0,0.001]
[1767976136582,1.00914211,3126.2,3125.0,0.001]
[1767976136783,1.00914211,3126.1,3125.0,0.001]
[1767976137195,1.00914211,3126.1,3125.1,3.1998455]
[1767976137587,0.01274514,3126.3,3125.0,0.001]
[1767976137588,7.41983989,3126.0,3125.0,0.001]
[1767976139174,1.00914211,3125.9,3125.0,0.001]
[1767976139374,0.249,3125.8,3125.0,0.001]
[1767976139609,3.19928336,3125.7,3125.0,0.001]
[1767976140209,6.39856672,3125.7,3125.0,0.001]
[1767976140424,1.00914211,3125.6,3125.0,0.001]
[1767976141532,6.39856672,3125.7,3125.0,0.001]
[1767976142997,0.98548875,3126.3,3125.0,0.001]
[1767976143195,0.01274514,3126.1,3125.0,0.001]
[1767976143716,3.19897632,3126.0,3125.0,0.001]
[1767976143896,0.01274514,3126.1,3125.0,1.01528404]
[1767976143897,3.19890075,3126.1,3125.0,1.01528404]
[1767976144095,3.19890075,3126.1,3125.1,1.75583292]
[1767976144096,6.3978015,3126.1,3125.1,1.75583292]
[1767976144539,3.19890075,3126.1,3125.1,1.75583292]
[1767976144699,3.4477971,3126.2,3125.2,1.01428404]
[1767976144700,3.44779405,3126.2,3125.2,1.01428404]
[1767976145226,0.002,3125.9,3125.2,1.01428404]
[1767976145798,0.002,3125.9,3125.4,1.01428404]
[1767976146932,0.002,3125.9,3125.3,3.19969282]
[1767976147251,0.002,3125.9,3125.2,0.251]
[1767976147397,0.002,3125.9,3125.1,0.001]
[1767976147594,0.002,3125.9,3125.2,3.19979237]
[1767976147824,0.002,3125.9,3125.3,0.6400689]
[1767976148556,3.19887399,3126.1,3125.1,0.001]
[1767976148557,0.97274361,3126.0,3125.1,0.001]
[1767976148702,0.01274514,3125.9,3125.1,0.001]
[1767976148912,0.98548875,3125.9,3125.1,0.001]
[1767976150032,0.97274361,3125.7,3125.1,0.001]
[1767976150237,1.22174361,3125.7,3125.1,0.001]
[1767976150414,0.249,3125.7,3125.1,0.001]
[1767976151271,0.002,3126.2,3125.1,1.01528404]
[1767976151931,0.002,3126.2,3125.2,3.19979521]
[1767976152245,0.97474361,3126.2,3125.1,3.20085746]
[1767976152409,0.002,3126.2,3125.2,0.64018481]
[1767976152609,0.251,3126.2,3125.2,0.64018481]
[1767976153042,0.251,3126.2,3125.3,1.01428404]
[1767976153242,0.002,3126.2,3125.3,1.01428404]
[1767976153910,0.002,3126.2,3125.5,6.39897616]
[1767976154113,0.002,3126.2,3125.6,0.76642602]
[1767976154510,0.002,3126.2,3125.6,1.78071006]
[1767976154737,0.00080112,3126.4,3125.6,1.78071006]
[1767976155154,0.00080112,3126.4,3125.7,1.01428404]
[1767976155944,0.00080112,3126.4,3125.8,7.41264604]
[1767976156247,0.00080112,3126.4,3125.9,0.7412646]
[1767976156556,0.00080112,3126.4,3125.9,1.75554864]
[1767976156749,3.44686257,3127.1,3125.9,1.75554864]
[1767976156991,3.44686257,3127.1,3126.0,0.0008012]
[1767976157250,3.44686257,3127.1,3126.1,0.17563498]
[1767976158213,3.44686257,3127.1,3126.2,3.19877167]
[1767976158415,0.002,3126.4,3126.2,7.41182738]
[1767976158615,0.251,3127.3,3126.3,1.01428404]
[1767976158834,3.44865495,3127.3,3126.4,0.74118274]
[1767976159215,0.251,3127.3,3126.4,0.74118274]
[1767976160250,3.44866816,3127.3,3126.4,3.9397418]
[1767976160446,0.97274361,3127.2,3126.4,0.74118274]
[1767976160650,0.97274361,3127.2,3126.2,3.19871641]
[1767976161149,0.97274361,3127.2,3126.1,3.37444962]
[1767976161358,0.97274361,3127.2,3126.2,3.19876023]
[1767976161540,0.97274361,3127.2,3126.1,3.37445748]
[1767976161854,0.97274361,3127.2,3126.2,3.19875215]
[1767976162060,0.97274361,3127.2,3126.3,0.65732588]
[1767976162245,0.97274361,3127.2,3126.1,3.3744613]
[1767976162441,7.36844569,3127.1,3126.1,3.3744613]